[Event "EYTCC U12 Open 2019"]
[Site "Pardubice"]
[Date "2019.07.11"]
[Round "1.1"]
[White "Herega, Nejc"]
[Black "Maurizzi, Marc Andria"]
[Result "0-1"]
[ECO "E49"]
[WhiteElo "1939"]
[BlackElo "2412"]
[Annotator "NA"]
[PlyCount "80"]
[EventDate "2019.07.11"]
[EventType "swiss"]
[EventCountry "CZE"]
[SourceTitle "playchess.com"]
[Source "ChessBase"]
[SourceQuality "1"]
[WhiteTeam "Slovenia"]
[BlackTeam "France"]
[WhiteTeamCountry "SLO"]
[BlackTeamCountry "FRA"]
[TimeControl "40/5400+30:1800+30"]

1. d4 {[%emt 0:00:00]} Nf6 {[%emt 0:00:00]} 2. c4 {[%emt 0:00:00]} e6 {[%emt 0:00:00]} 3. Nc3 {[%emt 0:00:00]} Bb4 {[%emt 0:00:00]} 4. e3 {[%emt 0:00:00]} O-O {[%emt 0:00:02]} 5. Bd3 {[%emt 0:00:00]} d5 {[%emt 0:00:33]} 6. a3 {[%emt 0:00:36]} Bxc3+ {[%emt 0:05:34]} 7. bxc3 dxc4 {[%emt 0:04:59]} 8. Bxc4 {[%emt 0:01:06]} c5 {[%emt 0:00:16]} 9. Ne2 {[%emt 0:01:56]} Nc6 {[%emt 0:01:18]} 10. O-O {[%emt 0:03:14]} e5 {[%emt 0:05:06]} 11. Bb2 {[%emt 0:04:05]} Qc7 {[%emt 0:09:49]} 12. Ba2 {[%emt 0:06:50]} Rd8 {[%emt 0:08:08]} 13. d5 {[%emt 0:08:37]} c4 {[%emt 0:06:39]} 14. Bxc4 {[%emt 0:08:47]} Na5 {[%emt 0:00:31]} 15. Ba2 {[%emt 0:04:19]} Nc4 {[%emt 0:00:48]} 16. Qc2 {[%emt 0:01:33]} Rxd5 {[%emt 0:05:35]} 17. Rad1 {[%emt 0:04:35]} Be6 {[%emt 0:01:28]} 18. Bc1 {[%emt 0:03:58]} Rxd1 {[%emt 0:20:09]} 19. Rxd1 {[%emt 0:01:52]} Rd8 {[%emt 0:00:47]} 20. Rxd8+ {[%emt 0:05:21]} Qxd8 {[%emt 0:00:01]} 21. Ng3 {[%emt 0:03:26]} h5 {[%emt 0:09:10]} 22. Qe2 {[%emt 0:07:59]} b5 {[%emt 0:05:38]} 23. Nxh5 {[%emt 0:09:01]} Nxh5 {[%emt 0:00:01]} 24. Qxh5 {[%emt 0:01:37]} Qd3 {[%emt 0:00:14]} 25. Bb3 {[%emt 0:02:01]} Qxc3 {[%emt 0:06:14]} 26. Qd1 {[%emt 0:01:06]} f6 {[%emt 0:01:53]} 27. h3 {[%emt 0:03:37]} a5 {[%emt 0:01:45]} 28. Bc2 {[%emt 0:02:39]} Kf7 {[%emt 0:00:23]} 29. a4 {[%emt 0:03:44]} b4 {[%emt 0:01:03]} 30. Kh2 {[%emt 0:01:38]} Ke7 {[%emt 0:00:50]} 31. e4 {[%emt 0:05:01]} Nb2 {[%emt 0:01:39]} 32. Qe2 {[%emt 0:02:09]} Bc4 {[%emt 0:00:35]} 33. Bxb2 {[%emt 0:01:28]} Bxe2 {[%emt 0:00:01]} 34. Bxc3 {[%emt 0:00:00]} bxc3 {[%emt 0:00:09]} 35. Kg3 {[%emt 0:01:35]} Kd6 {[%emt 0:00:28]} 36. f4 Kc5 {[%emt 0:00:10]} 37. fxe5 {[%emt 0:01:58]} fxe5 {[%emt 0:00:13]} 38. Kf2 Bc4 {[%emt 0:00:12]} 39. Ke3 {[%emt 0:00:56]} Kb4 40. g4 Ka3 {[%emt 0:00:35]} 0-1

[Event "EYTCC U12 Open 2019"]
[Site "Pardubice"]
[Date "2019.07.11"]
[Round "1.2"]
[White "Makkar, Rajat"]
[Black "Skrbec, Leon"]
[Result "1-0"]
[ECO "A40"]
[WhiteElo "2064"]
[BlackElo "1896"]
[Annotator "NA"]
[PlyCount "109"]
[EventDate "2019.07.11"]
[EventType "swiss"]
[EventCountry "CZE"]
[SourceTitle "playchess.com"]
[Source "ChessBase"]
[SourceQuality "1"]
[WhiteTeam "France"]
[BlackTeam "Slovenia"]
[WhiteTeamCountry "FRA"]
[BlackTeamCountry "SLO"]
[TimeControl "40/5400+30:1800+30"]

1. d4 {[%emt 0:00:00]} Nf6 {[%emt 0:00:00]} 2. c4 {[%emt 0:00:00]} e6 {[%emt 0:00:00]} 3. g3 {[%emt 0:00:02]} Bb4+ {[%emt 0:00:25]} 4. Bd2 {[%emt 0:00:22]} Qe7 {[%emt 0:00:07]} 5. Nf3 {[%emt 0:00:54]} b6 {[%emt 0:00:41]} 6. Bg2 {[%emt 0:00:33]} Bb7 {[%emt 0:00:32]} 7. O-O {[%emt 0:01:06]} O-O {[%emt 0:00:35]} 8. Nc3 {[%emt 0:00:34]} Bxc3 {[%emt 0:05:15]} 9. Bxc3 {[%emt 0:00:52]} Ne4 {[%emt 0:00:18]} 10. Be1 {[%emt 0:00:26]} f5 {[%emt 0:01:44]} 11. Nd2 {[%emt 0:04:46]} d5 {[%emt 0:02:04]} 12. e3 {[%emt 0:01:11]} Nd7 {[%emt 0:07:07]} 13. Rc1 {[%emt 0:02:53]} Ndf6 {[%emt 0:05:31]} 14. a3 {[%emt 0:04:39]} c5 {[%emt 0:01:36]} 15. Nxe4 {[%emt 0:04:50]} fxe4 {[%emt 0:01:26]} 16. b4 {[%emt 0:03:54]} cxd4 {[%emt 0:03:10]} 17. Qxd4 {[%emt 0:02:27]} Rfd8 {[%emt 0:01:47]} 18. Qb2 {[%emt 0:06:40]} Rac8 {[%emt 0:02:30]} 19. cxd5 {[%emt 0:05:39]} exd5 {[%emt 0:07:08]} 20. Bc3 {[%emt 0:00:39]} Qe6 {[%emt 0:04:55]} 21. Rfd1 {[%emt 0:01:12]} Rf8 {[%emt 0:15:44]} 22. Rd2 {[%emt 0:04:07]} Rf7 {[%emt 0:02:32]} 23. Bxf6 {[%emt 0:09:01]} Rxc1+ {[%emt 0:01:04]} 24. Qxc1 {[%emt 0:00:08]} Qxf6 {[%emt 0:00:35]} 25. Bh3 {[%emt 0:02:13]} h6 {[%emt 0:02:42]} 26. Bg4 {[%emt 0:03:53]} Kh7 {[%emt 0:04:42]} 27. Bh5 {[%emt 0:01:27]} Re7 {[%emt 0:04:57]} 28. Bd1 {[%emt 0:01:48]} Qe5 {[%emt 0:01:04]} 29. Rd4 {[%emt 0:04:45]} Ba6 {[%emt 0:05:52]} 30. Bb3 {[%emt 0:02:00]} Rc7 {[%emt 0:00:41]} 31. Qd2 {[%emt 0:01:48]} Bd3 {[%emt 0:00:18]} 32. Kg2 {[%emt 0:06:09]} Qf6 {[%emt 0:01:10]} 33. Bd1 {[%emt 0:07:48]} Qf5 {[%emt 0:01:54]} 34. Bb3 {[%emt 0:03:24]} Qf3+ {[%emt 0:01:14]} 35. Kg1 {[%emt 0:00:38]} h5 {[%emt 0:08:53]} 36. h4 {[%emt 0:01:16]} g6 {[%emt 0:02:36]} 37. Rxd5 {[%emt 0:01:18]} Qe2 {[%emt 0:00:50]} 38. Qxe2 {[%emt 0:01:30]} Bxe2 {[%emt 0:00:05]} 39. Kh2 {[%emt 0:01:03]} Rc1 {[%emt 0:00:45]} 40. g4 {[%emt 0:01:51]} Bxg4 {[%emt 0:00:13]} 41. Kg3 {[%emt 0:30:26]} Be6 {[%emt 0:30:28]} 42. Rd1 {[%emt 0:00:28]} Rxd1 {[%emt 0:01:15]} 43. Bxd1 {[%emt 0:00:02]} Kg7 {[%emt 0:00:48]} 44. Kf4 {[%emt 0:00:07]} Kf6 {[%emt 0:00:29]} 45. Bc2 {[%emt 0:00:19]} Bc4 {[%emt 0:00:56]} 46. Bxe4 {[%emt 0:00:11]} Bb5 {[%emt 0:00:35]} 47. Bc2 {[%emt 0:00:08]} Bc4 {[%emt 0:00:51]} 48. e4 {[%emt 0:00:22]} a5 {[%emt 0:01:02]} 49. e5+ {[%emt 0:00:17]} Kg7 {[%emt 0:00:13]} 50. Kg5 {[%emt 0:00:16]} Bf7 {[%emt 0:00:13]} 51. bxa5 {[%emt 0:00:06]} bxa5 {[%emt 0:00:05]} 52. f4 {[%emt 0:00:08]} Be8 {[%emt 0:00:15]} 53. e6 {[%emt 0:00:10]} a4 {[%emt 0:00:14]} 54. e7 {[%emt 0:00:31]} Bf7 {[%emt 0:00:26]} 55. Bxa4 {[%emt 0:00:05]} 1-0

[Event "EYTCC U12 Open 2019"]
[Site "Pardubice"]
[Date "2019.07.11"]
[Round "1.3"]
[White "Gregoric, Andraz"]
[Black "Mekhane, Adam"]
[Result "0-1"]
[ECO "B59"]
[WhiteElo "1911"]
[BlackElo "2040"]
[Annotator "NA"]
[PlyCount "66"]
[EventDate "2019.07.11"]
[EventType "swiss"]
[EventCountry "CZE"]
[SourceTitle "playchess.com"]
[Source "ChessBase"]
[SourceQuality "1"]
[WhiteTeam "Slovenia"]
[BlackTeam "France"]
[WhiteTeamCountry "SLO"]
[BlackTeamCountry "FRA"]
[TimeControl "40/5400+30:1800+30"]

1. e4 {[%emt 0:00:00]} c5 {[%emt 0:00:00]} 2. Nf3 {[%emt 0:00:00]} Nc6 {[%emt 0:00:00]} 3. d4 {[%emt 0:00:10]} cxd4 {[%emt 0:00:02]} 4. Nxd4 {[%emt 0:00:06]} Nf6 {[%emt 0:00:12]} 5. Nc3 {[%emt 0:00:14]} d6 {[%emt 0:00:05]} 6. Be2 {[%emt 0:01:52]} e5 {[%emt 0:00:11]} 7. Nb3 {[%emt 0:02:39]} Be7 {[%emt 0:00:20]} 8. Bg5 {[%emt 0:01:10]} O-O {[%emt 0:03:39]} 9. Bxf6 {[%emt 0:00:36]} Bxf6 {[%emt 0:00:27]} 10. O-O {[%emt 0:03:01]} Be6 {[%emt 0:02:54]} 11. Bf3 {[%emt 0:12:55]} a5 {[%emt 0:04:35]} 12. Nc1 {[%emt 0:03:31]} Nd4 {[%emt 0:07:48]} 13. Nb3 {[%emt 0:04:17]} Nxf3+ {[%emt 0:04:33]} 14. Qxf3 {[%emt 0:00:06]} a4 {[%emt 0:04:29]} 15. Nc1 {[%emt 0:00:22]} a3 {[%emt 0:07:09]} 16. Rb1 {[%emt 0:06:59]} Qc7 {[%emt 0:05:55]} 17. b3 {[%emt 0:04:22]} Bg5 {[%emt 0:07:50]} 18. N1e2 {[%emt 0:07:18]} Qc6 {[%emt 0:04:08]} 19. Rbd1 {[%emt 0:07:49]} Rac8 {[%emt 0:05:33]} 20. Qd3 {[%emt 0:04:44]} Rfd8 {[%emt 0:03:14]} 21. Qg3 {[%emt 0:10:36]} Bf4 {[%emt 0:04:07]} 22. Qd3 {[%emt 0:00:15]} Bg5 {[%emt 0:01:21]} 23. Qg3 {[%emt 0:05:57]} Bh6 {[%emt 0:01:36]} 24. Qd3 {[%emt 0:04:04]} g6 {[%emt 0:13:35]} 25. Kh1 {[%emt 0:01:45]} Kh8 {[%emt 0:00:30]} 26. f3 {[%emt 0:00:40]} Qc5 {[%emt 0:04:53]} 27. h3 {[%emt 0:01:21]} Rc6 {[%emt 0:02:46]} 28. Kh2 {[%emt 0:00:56]} b5 {[%emt 0:02:17]} 29. Nxb5 {[%emt 0:02:14]} Qxc2 {[%emt 0:01:09]} 30. Nxa3 {[%emt 0:00:29]} Qxa2 {[%emt 0:01:42]} 31. Nc4 {[%emt 0:01:35]} Rxc4 {[%emt 0:01:59]} 32. bxc4 {[%emt 0:00:10]} Bxc4 {[%emt 0:00:15]} 33. Nc3 {[%emt 0:01:36]} Qa6 {[%emt 0:00:23]} 0-1

[Event "EYTCC U12 Open 2019"]
[Site "Pardubice"]
[Date "2019.07.11"]
[Round "1.4"]
[White "Bat, Bilguun"]
[Black "Olenik Campa, Rudi"]
[Result "1-0"]
[ECO "A48"]
[WhiteElo "2093"]
[BlackElo "1854"]
[Annotator "NA"]
[PlyCount "99"]
[EventDate "2019.07.11"]
[EventType "swiss"]
[EventCountry "CZE"]
[SourceTitle "playchess.com"]
[Source "ChessBase"]
[SourceQuality "1"]
[WhiteTeam "France"]
[BlackTeam "Slovenia"]
[WhiteTeamCountry "FRA"]
[BlackTeamCountry "SLO"]
[TimeControl "40/5400+30:1800+30"]

1. d4 {[%emt 0:00:00]} Nf6 {[%emt 0:00:00]} 2. Nf3 {[%emt 0:00:00]} g6 {[%emt 0:00:00]} 3. c4 {[%emt 0:00:00]} Bg7 {[%emt 0:00:06]} 4. e3 {[%emt 0:00:08]} O-O {[%emt 0:00:44]} 5. Be2 {[%emt 0:00:07]} d6 {[%emt 0:00:05]} 6. Nc3 {[%emt 0:00:11]} c5 {[%emt 0:04:58]} 7. O-O {[%emt 0:01:52]} e6 {[%emt 0:01:47]} 8. b3 {[%emt 0:00:31]} Nc6 {[%emt 0:00:44]} 9. Bb2 {[%emt 0:02:01]} b6 {[%emt 0:02:52]} 10. a3 {[%emt 0:07:50]} a6 {[%emt 0:01:04]} 11. Qc2 {[%emt 0:00:34]} Qc7 {[%emt 0:01:27]} 12. Rfd1 {[%emt 0:01:24]} Bb7 {[%emt 0:01:32]} 13. d5 {[%emt 0:05:47]} exd5 {[%emt 0:03:26]} 14. Nxd5 {[%emt 0:00:13]} Nxd5 {[%emt 0:00:16]} 15. cxd5 {[%emt 0:00:18]} Ne7 {[%emt 0:02:22]} 16. Bxg7 {[%emt 0:00:55]} Kxg7 {[%emt 0:00:07]} 17. Qb2+ {[%emt 0:00:39]} Kg8 {[%emt 0:00:14]} 18. e4 {[%emt 0:00:38]} Rfe8 {[%emt 0:06:01]} 19. h4 {[%emt 0:02:15]} h5 {[%emt 0:06:53]} 20. Ng5 {[%emt 0:05:03]} Qd7 {[%emt 0:02:23]} 21. Bf1 {[%emt 0:02:00]} Bc8 {[%emt 0:02:18]} 22. e5 {[%emt 0:04:27]} dxe5 {[%emt 0:00:53]} 23. Ne4 {[%emt 0:00:12]} Kf8 {[%emt 0:09:46]} 24. Nf6 {[%emt 0:01:17]} Qd6 {[%emt 0:00:43]} 25. Nxe8 {[%emt 0:00:14]} Kxe8 {[%emt 0:00:02]} 26. b4 {[%emt 0:05:11]} Nf5 {[%emt 0:02:14]} 27. bxc5 {[%emt 0:05:17]} bxc5 {[%emt 0:00:07]} 28. Rac1 {[%emt 0:01:58]} Ra7 {[%emt 0:02:49]} 29. Rb1 {[%emt 0:08:35]} Rb7 {[%emt 0:01:06]} 30. Qc3 {[%emt 0:01:10]} Nxh4 {[%emt 0:04:17]} 31. Rxb7 {[%emt 0:01:25]} Bxb7 {[%emt 0:02:43]} 32. Qb3 {[%emt 0:01:44]} Qd7 {[%emt 0:01:03]} 33. Qg3 {[%emt 0:01:44]} Qg4 {[%emt 0:01:26]} 34. Qxg4 {[%emt 0:02:08]} hxg4 {[%emt 0:00:06]} 35. Rc1 {[%emt 0:00:28]} Ke7 {[%emt 0:02:07]} 36. Rxc5 {[%emt 0:00:15]} Kd6 {[%emt 0:00:04]} 37. Ra5 {[%emt 0:01:20]} f5 {[%emt 0:01:05]} 38. Be2 {[%emt 0:09:05]} e4 {[%emt 0:01:14]} 39. Bxa6 {[%emt 0:02:02]} Bxd5 {[%emt 0:02:39]} 40. Be2 {[%emt 0:01:46]} e3 {[%emt 0:03:20]} 41. g3 {[%emt 0:32:29]} Nf3+ {[%emt 0:31:13]} 42. Bxf3 {[%emt 0:00:08]} exf2+ {[%emt 0:00:04]} 43. Kxf2 {[%emt 0:00:09]} Bxf3 {[%emt 0:00:49]} 44. Ke3 {[%emt 0:01:38]} Be4 {[%emt 0:05:49]} 45. Kf4 {[%emt 0:00:12]} Bc6 {[%emt 0:00:45]} 46. Kg5 {[%emt 0:00:47]} Bd5 {[%emt 0:02:00]} 47. Ra7 {[%emt 0:00:52]} Ke5 {[%emt 0:01:06]} 48. Re7+ {[%emt 0:00:59]} Kd4 {[%emt 0:01:45]} 49. Kf4 {[%emt 0:00:38]} Bc6 {[%emt 0:03:45]} 50. Re6 {[%emt 0:00:23]} 1-0

[Event "EYTCC U12 Open 2019"]
[Site "Pardubice"]
[Date "2019.07.11"]
[Round "1.5"]
[White "Tancsa, Tamas"]
[Black "Finek, Vaclav"]
[Result "1-0"]
[ECO "B76"]
[WhiteElo "2126"]
[BlackElo "2043"]
[Annotator "NA"]
[PlyCount "173"]
[EventDate "2019.07.11"]
[EventType "swiss"]
[EventCountry "CZE"]
[SourceTitle "playchess.com"]
[Source "ChessBase"]
[SourceQuality "1"]
[WhiteTeam "Hungary"]
[BlackTeam "Czech Republic"]
[WhiteTeamCountry "HUN"]
[BlackTeamCountry "CZE"]
[TimeControl "40/5400+30:1800+30"]

1. e4 {[%emt 0:00:00]} c5 {[%emt 0:00:00]} 2. Nf3 {[%emt 0:00:00]} d6 {[%emt 0:00:00]} 3. d4 {[%emt 0:00:00]} cxd4 {[%emt 0:00:00]} 4. Nxd4 {[%emt 0:00:00]} Nf6 {[%emt 0:00:00]} 5. Nc3 {[%emt 0:00:05]} g6 {[%emt 0:00:12]} 6. Be3 {[%emt 0:00:13]} Bg7 {[%emt 0:00:11]} 7. f3 {[%emt 0:00:06]} O-O {[%emt 0:00:13]} 8. Qd2 {[%emt 0:00:24]} Nc6 {[%emt 0:00:11]} 9. g4 {[%emt 0:00:35]} Be6 {[%emt 0:00:20]} 10. Nxe6 {[%emt 0:00:14]} fxe6 {[%emt 0:00:08]} 11. h4 {[%emt 0:01:41]} d5 {[%emt 0:01:06]} 12. g5 {[%emt 0:09:49]} d4 {[%emt 0:00:09]} 13. gxf6 {[%emt 0:03:16]} Bxf6 {[%emt 0:07:49]} 14. Bc4 {[%emt 0:25:29]} Qc8 {[%emt 0:13:22]} 15. O-O-O {[%emt 0:26:11]} dxc3 {[%emt 0:08:51]} 16. Qd7 {[%emt 0:01:31]} cxb2+ {[%emt 0:02:01]} 17. Kb1 {[%emt 0:00:12]} Qxd7 {[%emt 0:01:36]} 18. Rxd7 {[%emt 0:00:16]} Kf7 {[%emt 0:05:42]} 19. f4 {[%emt 0:04:46]} Na5 {[%emt 0:09:19]} 20. Bd3 {[%emt 0:01:15]} Rfc8 {[%emt 0:09:54]} 21. e5 {[%emt 0:02:56]} Bg7 {[%emt 0:00:54]} 22. Bd2 {[%emt 0:01:58]} Nc4 {[%emt 0:00:31]} 23. Bb4 {[%emt 0:00:07]} Bf8 {[%emt 0:01:47]} 24. h5 {[%emt 0:01:56]} Nb6 {[%emt 0:03:44]} 25. hxg6+ {[%emt 0:04:20]} hxg6 {[%emt 0:00:08]} 26. Rxb7 {[%emt 0:00:16]} Nd5 {[%emt 0:01:51]} 27. Bd2 {[%emt 0:01:10]} Rab8 {[%emt 0:00:47]} 28. Rxb8 {[%emt 0:01:42]} Rxb8 {[%emt 0:00:03]} 29. Rg1 {[%emt 0:00:06]} Bh6 {[%emt 0:03:25]} 30. Bxg6+ {[%emt 0:02:15]} Kf8 {[%emt 0:00:25]} 31. c4 {[%emt 0:05:27]} Nb6 {[%emt 0:02:50]} 32. Bd3 {[%emt 0:01:07]} Rd8 {[%emt 0:00:42]} 33. Kc2 Na4 {[%emt 0:02:07]} 34. Be3 {[%emt 0:06:40]} a6 {[%emt 0:06:02]} 35. c5 {[%emt 0:00:28]} Nxc5 {[%emt 0:02:00]} 36. Bxc5 {[%emt 0:00:19]} Rc8 {[%emt 0:00:05]} 37. Kxb2 {[%emt 0:00:15]} Rxc5 {[%emt 0:00:01]} 38. Bxa6 {[%emt 0:00:21]} Ke8 {[%emt 0:02:36]} 39. Rf1 {[%emt 0:00:27]} Kd7 {[%emt 0:01:31]} 40. a4 {[%emt 0:00:45]} Kc6 {[%emt 0:00:53]} 41. Kb3 {[%emt 0:31:03]} Kd5 {[%emt 0:31:58]} 42. Kb4 {[%emt 0:00:41]} Rc2 {[%emt 0:01:07]} 43. Rd1+ {[%emt 0:00:37]} Kc6 {[%emt 0:00:09]} 44. Bb5+ {[%emt 0:00:06]} Kc7 {[%emt 0:00:28]} 45. Rd7+ {[%emt 0:00:26]} Kc8 {[%emt 0:00:10]} 46. Ka5 {[%emt 0:00:58]} Bxf4 {[%emt 0:01:54]} 47. Rxe7 {[%emt 0:00:00]} Bxe5 {[%emt 0:00:00]} 48. Rxe6 {[%emt 0:00:00]} Bc7+ {[%emt 0:00:00]} 49. Ka6 {[%emt 0:00:00]} Rd2 {[%emt 0:00:00]} 50. Re4 {[%emt 0:00:00]} Kb8 {[%emt 0:00:00]} 51. Bc6 {[%emt 0:00:00]} Rd6 {[%emt 0:00:00]} 52. Rb4+ {[%emt 0:00:00]} Kc8 {[%emt 0:00:00]} 53. Rc4 {[%emt 0:00:00]} Kb8 {[%emt 0:00:00]} 54. a5 {[%emt 0:00:00]} Bxa5 {[%emt 0:00:00]} 55. Kxa5 {[%emt 0:00:00]} Kc7 {[%emt 0:00:00]} 56. Bf3+ {[%emt 0:00:00]} Kd8 {[%emt 0:00:00]} 57. Kb5 {[%emt 0:00:00]} Ke7 {[%emt 0:00:00]} 58. Kc5 {[%emt 0:00:00]} Rd2 {[%emt 0:00:00]} 59. Bd5 {[%emt 0:00:00]} Kf6 {[%emt 0:00:00]} 60. Kd6 {[%emt 0:00:00]} Kf5 {[%emt 0:00:00]} 61. Rc1 {[%emt 0:00:00]} Re2 {[%emt 0:00:00]} 62. Rf1+ {[%emt 0:00:00]} Kg5 {[%emt 0:00:00]} 63. Be6 {[%emt 0:00:00]} Rb2 {[%emt 0:00:00]} 64. Bc4 {[%emt 0:00:00]} Rc2 {[%emt 0:00:00]} 65. Be6 {[%emt 0:00:00]} Rb2 {[%emt 0:00:00]} 66. Ke7 {[%emt 0:00:00]} Rb7+ {[%emt 0:00:00]} 67. Bd7 {[%emt 0:00:00]} Rb6 {[%emt 0:00:00]} 68. Rf5+ {[%emt 0:00:00]} Kh4 {[%emt 0:00:00]} 69. Be6 {[%emt 0:00:00]} Kg3 {[%emt 0:00:00]} 70. Kf6 {[%emt 0:00:00]} Rb4 {[%emt 0:00:00]} 71. Ke5 {[%emt 0:00:00]} Rb1 {[%emt 0:00:00]} 72. Bd5 {[%emt 0:00:00]} Re1+ {[%emt 0:00:00]} 73. Be4 {[%emt 0:00:00]} Kg4 {[%emt 0:00:00]} 74. Rf8 {[%emt 0:00:00]} Kg3 {[%emt 0:00:00]} 75. Rg8+ {[%emt 0:00:00]} Kf2 {[%emt 0:00:00]} 76. Kf4 {[%emt 0:00:00]} Rg1 {[%emt 0:01:18]} 77. Rh8 {[%emt 0:00:00]} Rg7 {[%emt 0:01:02]} 78. Rh2+ {[%emt 0:00:00]} Kg1 {[%emt 0:00:16]} 79. Ra2 {[%emt 0:00:00]} Rc7 {[%emt 0:07:26]} 80. Kg3 {[%emt 0:00:00]} Rf7 {[%emt 0:05:44]} 81. Bf3 {[%emt 0:02:10]} Rg7+ {[%emt 0:00:32]} 82. Bg4 {[%emt 0:00:06]} Rf7 {[%emt 0:00:21]} 83. Re2 {[%emt 0:00:02]} Rf8 {[%emt 0:03:37]} 84. Be6 {[%emt 0:00:21]} Rf6 {[%emt 0:00:39]} 85. Re5 {[%emt 0:00:07]} Rg6+ {[%emt 0:01:25]} 86. Bg4 {[%emt 0:00:13]} Kf1 {[%emt 0:00:23]} 87. Rd5 {[%emt 0:00:14]} 1-0

[Event "EYTCC U12 Open 2019"]
[Site "Pardubice"]
[Date "2019.07.11"]
[Round "1.6"]
[White "Nemec, Jachym"]
[Black "Tran, David"]
[Result "1-0"]
[ECO "D01"]
[WhiteElo "1927"]
[BlackElo "2112"]
[Annotator "NA"]
[PlyCount "81"]
[EventDate "2019.07.11"]
[EventType "swiss"]
[EventCountry "CZE"]
[SourceTitle "playchess.com"]
[Source "ChessBase"]
[SourceQuality "1"]
[WhiteTeam "Czech Republic"]
[BlackTeam "Hungary"]
[WhiteTeamCountry "CZE"]
[BlackTeamCountry "HUN"]
[TimeControl "40/5400+30:1800+30"]

1. d4 {[%emt 0:00:00]} Nf6 {[%emt 0:00:00]} 2. Nc3 {[%emt 0:00:08]} d5 {[%emt 0:00:00]} 3. Bg5 {[%emt 0:01:32]} Nbd7 {[%emt 0:00:00]} 4. f3 {[%emt 0:04:23]} c6 {[%emt 0:06:10]} 5. Qd2 {[%emt 0:12:13]} h6 {[%emt 0:00:36]} 6. Bf4 {[%emt 0:01:21]} Nh5 {[%emt 0:06:25]} 7. e4 {[%emt 0:12:20]} Nxf4 {[%emt 0:00:57]} 8. Qxf4 {[%emt 0:00:03]} dxe4 {[%emt 0:02:09]} 9. fxe4 {[%emt 0:00:17]} e5 {[%emt 0:04:30]} 10. dxe5 {[%emt 0:05:33]} Qa5 {[%emt 0:00:30]} 11. Bc4 {[%emt 0:02:46]} Nxe5 {[%emt 0:00:33]} 12. Bb3 {[%emt 0:00:11]} Bd6 {[%emt 0:04:50]} 13. Qe3 {[%emt 0:12:52]} Be6 {[%emt 0:02:54]} 14. O-O-O {[%emt 0:04:09]} O-O-O {[%emt 0:02:09]} 15. Bxe6+ {[%emt 0:02:35]} fxe6 {[%emt 0:00:10]} 16. Qh3 {[%emt 0:00:30]} Rhe8 {[%emt 0:02:04]} 17. Nge2 {[%emt 0:00:42]} Nc4 {[%emt 0:03:25]} 18. Nd4 {[%emt 0:10:56]} Bf4+ {[%emt 0:03:06]} 19. Kb1 {[%emt 0:00:17]} Nd2+ {[%emt 0:03:04]} 20. Rxd2 {[%emt 0:00:40]} Bxd2 {[%emt 0:00:07]} 21. Nxe6 {[%emt 0:00:13]} Rd7 {[%emt 0:00:33]} 22. Nxg7 {[%emt 0:00:42]} Rg8 {[%emt 0:01:30]} 23. Nf5 {[%emt 0:01:01]} Qb4 {[%emt 0:03:01]} 24. a3 {[%emt 0:02:57]} Qc5 {[%emt 0:03:21]} 25. Rd1 {[%emt 0:03:06]} Kc7 {[%emt 0:02:25]} 26. g3 {[%emt 0:07:01]} Rgd8 {[%emt 0:01:38]} 27. Ne2 {[%emt 0:02:11]} Bg5 {[%emt 0:01:15]} 28. Rxd7+ {[%emt 0:01:17]} Rxd7 {[%emt 0:00:10]} 29. Nc3 {[%emt 0:00:37]} Bf6 {[%emt 0:02:00]} 30. g4 {[%emt 0:00:29]} Bxc3 {[%emt 0:01:07]} 31. Qxc3 {[%emt 0:00:38]} Rd1+ {[%emt 0:00:08]} 32. Ka2 {[%emt 0:00:09]} Qxc3 {[%emt 0:00:07]} 33. bxc3 {[%emt 0:00:03]} Rd2 {[%emt 0:00:05]} 34. h4 {[%emt 0:01:57]} Rxc2+ {[%emt 0:00:43]} 35. Kb3 {[%emt 0:00:07]} Re2 {[%emt 0:01:14]} 36. Nxh6 {[%emt 0:00:56]} Rxe4 {[%emt 0:00:06]} 37. h5 {[%emt 0:00:12]} Re5 {[%emt 0:02:45]} 38. Nf5 {[%emt 0:01:55]} Kd7 {[%emt 0:02:43]} 39. h6 {[%emt 0:00:22]} Re8 {[%emt 0:01:39]} 40. g5 {[%emt 0:00:12]} Rf8 {[%emt 0:01:53]} 41. g6 {[%emt 0:30:38]} 1-0

[Event "EYTCC U12 Open 2019"]
[Site "Pardubice"]
[Date "2019.07.11"]
[Round "1.7"]
[White "Konyves, Almos"]
[Black "Brozka, Karel"]
[Result "0-1"]
[ECO "E73"]
[WhiteElo "2104"]
[BlackElo "1816"]
[Annotator "NA"]
[PlyCount "96"]
[EventDate "2019.07.11"]
[EventType "swiss"]
[EventCountry "CZE"]
[SourceTitle "playchess.com"]
[Source "ChessBase"]
[SourceQuality "1"]
[WhiteTeam "Hungary"]
[BlackTeam "Czech Republic"]
[WhiteTeamCountry "HUN"]
[BlackTeamCountry "CZE"]
[TimeControl "40/5400+30:1800+30"]

1. c4 {[%emt 0:00:00]} Nf6 {[%emt 0:00:00]} 2. Nc3 {[%emt 0:00:00]} g6 {[%emt 0:00:00]} 3. e4 {[%emt 0:00:06]} d6 {[%emt 0:00:19]} 4. d4 {[%emt 0:00:18]} Bg7 {[%emt 0:00:06]} 5. Be2 {[%emt 0:00:08]} Nbd7 {[%emt 0:00:31]} 6. Be3 {[%emt 0:00:11]} e5 {[%emt 0:03:04]} 7. Nf3 {[%emt 0:00:15]} O-O {[%emt 0:00:22]} 8. d5 {[%emt 0:00:08]} a5 {[%emt 0:03:28]} 9. Nd2 {[%emt 0:00:15]} Ne8 {[%emt 0:00:51]} 10. g4 {[%emt 0:01:02]} b6 {[%emt 0:06:21]} 11. h4 {[%emt 0:05:03]} f5 {[%emt 0:04:26]} 12. exf5 {[%emt 0:00:35]} gxf5 {[%emt 0:00:15]} 13. gxf5 {[%emt 0:00:05]} Nc5 {[%emt 0:00:24]} 14. Nde4 {[%emt 0:11:09]} Bxf5 {[%emt 0:01:58]} 15. Ng3 {[%emt 0:05:07]} Qd7 {[%emt 0:05:28]} 16. Nxf5 {[%emt 0:03:40]} Qxf5 {[%emt 0:00:47]} 17. Bg4 {[%emt 0:00:45]} Qf6 {[%emt 0:07:03]} 18. Qc2 {[%emt 0:10:54]} Kh8 {[%emt 0:11:48]} 19. O-O-O {[%emt 0:19:40]} Bh6 {[%emt 0:01:45]} 20. Bg5 {[%emt 0:09:58]} e4 {[%emt 0:14:46]} 21. Bxh6 {[%emt 0:14:24]} Qxh6+ {[%emt 0:00:10]} 22. Kb1 {[%emt 0:00:53]} Qf4 {[%emt 0:01:49]} 23. Be2 {[%emt 0:02:20]} Nf6 {[%emt 0:01:50]} 24. Rdf1 {[%emt 0:01:00]} Rae8 {[%emt 0:02:02]} 25. Nb5 {[%emt 0:01:42]} Re7 {[%emt 0:02:15]} 26. Nd4 {[%emt 0:01:16]} Nfd7 {[%emt 0:11:04]} 27. a3 {[%emt 0:01:52]} a4 {[%emt 0:02:03]} 28. Nc6 {[%emt 0:02:55]} Rg7 {[%emt 0:01:20]} 29. Qc3 {[%emt 0:02:31]} Qf6 {[%emt 0:02:10]} 30. Qxf6 {[%emt 0:01:27]} Rxf6 {[%emt 0:00:15]} 31. f3 Nb3 {[%emt 0:01:27]} 32. Ka2 {[%emt 0:03:52]} Rg2 {[%emt 0:03:07]} 33. Bd1 {[%emt 0:01:39]} Nd2 {[%emt 0:00:42]} 34. Re1 {[%emt 0:00:09]} exf3 {[%emt 0:02:52]} 35. Re8+ {[%emt 0:00:07]} Nf8 {[%emt 0:00:40]} 36. Nd4 {[%emt 0:01:41]} f2 {[%emt 0:01:19]} 37. Ne6 {[%emt 0:00:13]} Kg8 {[%emt 0:00:19]} 38. Nxf8 {[%emt 0:00:40]} Rxf8 {[%emt 0:00:10]} 39. Rxf8+ {[%emt 0:00:48]} Kxf8 {[%emt 0:00:09]} 40. Be2 {[%emt 0:00:00]} Rg1 {[%emt 0:02:45]} 41. Rh2 {[%emt 0:30:05]} f1=Q {[%emt 0:30:39]} 42. Bxf1 {[%emt 0:00:03]} Nxf1 {[%emt 0:00:17]} 43. Rf2+ {[%emt 0:00:01]} Ke7 {[%emt 0:00:19]} 44. Re2+ {[%emt 0:00:09]} Kd7 {[%emt 0:00:04]} 45. Rf2 {[%emt 0:00:03]} h5 {[%emt 0:00:26]} 46. Rf7+ {[%emt 0:01:10]} Kc8 {[%emt 0:00:05]} 47. Rf5 {[%emt 0:00:04]} Nd2 {[%emt 0:00:14]} 48. Rxh5 {[%emt 0:00:32]} Nb3 {[%emt 0:00:06]} 0-1